bitfinex-derivatives/quotes_ETHF0:USTF0_20250614
["timestamp","ask_amount","ask_price","bid_price","bid_amount"]
[1749936474512,1.98444,2518.5,2518.0,34.5678]
[1749936474717,0.79388,2518.2,2518.1,0.79387]
[1749936475406,1.98444,2518.5,2518.0,34.5678]
[1749936475606,0.79387,2518.2,2518.1,0.79386]
[1749936478918,0.79386,2518.3,2518.2,0.79383]
[1749936479217,0.79386,2518.3,2518.2,25.53583]
[1749936479518,0.79382,2518.4,2518.3,0.7938]
[1749936479822,1.3198,2518.7,2518.2,24.742]
[1749936480021,0.79369,2518.8,2518.3,5.19236]
[1749936480317,0.79373,2518.7,2518.6,0.79371]
[1749936480619,0.79373,2518.7,2518.6,25.52871]
[1749936481317,0.0059248,2518.9,2518.6,24.735]
[1749936481623,0.0059248,2518.9,2518.8,0.79366]
[1749936481915,0.6444,2519.3,2519.2,0.79351]
[1749936481916,0.79352,2519.3,2519.2,0.79351]
[1749936482619,0.79354,2519.2,2519.1,24.729]
[1749936483310,1.85847112,2519.2,2519.1,24.729]
[1749936485113,1.06493112,2519.2,2519.0,0.79358]
[1749936485416,0.79359,2519.1,2519.0,0.7936]
[1749936485622,0.79359,2519.1,2518.9,27.9438]
[1749936485813,3.2078,2519.6,2518.9,29.92786]
[1749936486021,0.79349,2519.4,2519.3,0.7935]
[1749936486216,1.8584802,2519.4,2519.3,24.729]
[1749936486414,1.0649902,2519.4,2519.3,25.52251]
[1749936486619,0.79336,2519.8,2519.7,0.79337]
[1749936486819,1.85935481,2519.8,2519.7,24.724]
[1749936487320,0.7933,2520.0,2519.9,0.79332]
[1749936487620,0.7933,2520.0,2519.8,0.79333]
[1749936487919,0.79332,2519.9,2519.8,2.17203]
[1749936488121,3.2078,2520.3,2519.9,0.79331]
[1749936488320,0.79329,2520.0,2519.9,1.3787]
[1749936488519,0.79329,2520.0,2519.9,26.1337]
[1749936490713,0.79329,2520.0,2519.9,24.755]
[1749936497029,0.79329,2520.0,2519.9,31.257]
[1749936499435,0.79329,2520.0,2519.9,32.05032]
[1749936500033,0.79329,2520.0,2519.9,31.257]
[1749936500834,3.3433,2520.3,2520.0,0.79327]
[1749936500835,0.79328,2520.1,2520.0,0.79327]
[1749936501131,0.79329,2520.0,2519.9,32.05032]
[1749936501634,0.79329,2520.0,2519.9,31.257]
[1749936501933,0.79329,2520.0,2519.9,32.05032]
[1749936502132,0.79329,2520.0,2519.9,31.257]
[1749936502832,0.79329,2520.0,2519.9,32.05032]
[1749936503136,0.79329,2520.0,2519.9,31.257]
[1749936503527,0.79329,2520.0,2519.9,32.05032]
[1749936504229,3.2078,2520.4,2519.9,31.257]
[1749936504431,0.79321,2520.3,2520.2,0.79319]
[1749936504632,0.79321,2520.3,2520.2,25.42619]
[1749936505836,4.00097,2520.4,2520.3,0.79319]
[1749936506037,4.00097,2520.4,2520.3,2.07639]
[1749936506332,3.2078,2520.7,2520.3,7.7852]
[1749936506534,0.79311,2520.6,2520.5,0.7931]
[1749936506735,0.79311,2520.6,2520.5,25.4161]
[1749936507137,0.79311,2520.6,2520.5,24.623]
[1749936507334,0.79313,2520.5,2520.4,0.6842]
[1749936507634,0.79313,2520.5,2520.4,24.621]
[1749936508337,0.79322,2520.2,2520.1,5.1754]
[1749936508532,3.33042,2520.4,2519.9,6.501]
[1749936508838,0.79329,2520.0,2519.9,6.501]
[1749936509036,0.79332,2519.9,2519.8,6.501]
[1749936509234,0.79332,2519.9,2519.8,31.122]
[1749936510137,1.9833,2519.9,2519.5,3.8557]
[1749936510344,0.79341,2519.6,2519.5,3.8557]
[1749936510539,0.79341,2519.6,2519.5,3.2078]
[1749936510740,0.79348,2519.4,2519.3,24.6733]
[1749936510939,0.79348,2519.4,2519.3,6.501]
[1749936511135,0.79354,2519.2,2519.1,0.00595297]
[1749936512741,0.6862,2519.4,2519.1,25.42450297]
[1749936512941,0.79354,2519.2,2519.1,24.63095297]
[1749936513143,0.79354,2519.2,2519.1,31.15195297]
[1749936513342,0.79354,2519.2,2519.1,32.48495297]
[1749936514038,0.79352,2519.3,2519.1,32.48495297]
[1749936514244,0.79348,2519.4,2519.2,0.79352]
[1749936514439,1.3066,2519.8,2519.2,1.271]
[1749936514635,0.79347,2519.5,2519.3,0.7935]
[1749936514839,0.79347,2519.5,2519.4,24.655]
[1749936515236,3.8622,2519.9,2519.5,0.79344]
[1749936515439,1.07323957,2519.8,2519.4,24.655]
[1749936515639,0.7934,2519.7,2519.5,2.06442]
[1749936515843,0.79351,2519.3,2519.2,0.671]
[1749936516238,0.7935,2519.4,2519.2,1.46454]
[1749936516440,0.7935,2519.4,2519.3,0.79351]
[1749936516638,1.98344,2519.8,2519.2,2.73551]
[1749936516947,0.7935,2519.4,2519.2,9.23751]
[1749936517149,0.7935,2519.4,2519.3,0.79351]
[1749936517442,0.79351,2519.3,2519.2,8.444]
[1749936517947,3.27514,2519.8,2519.3,0.7935]
[1749936518148,1.07453688,2519.7,2519.4,24.688]
[1749936518345,0.79344,2519.5,2519.4,24.688]
[1749936522741,1.86770727,2519.5,2519.4,24.688]
[1749936523953,0.79344,2519.5,2519.4,24.688]
[1749936525549,0.79342,2519.6,2519.4,24.688]
[1749936525847,0.79344,2519.5,2519.4,26.0054]
[1749936526245,0.79344,2519.5,2519.4,26.79885]
[1749936528256,0.79344,2519.6,2519.5,0.79343]
[1749936528457,0.6544,2519.9,2519.4,26.0054]
[1749936528748,1.86755297,2519.8,2519.7,0.79338]
[1749936528952,0.79341,2519.7,2519.6,25.41739]
[1749936530254,0.79341,2519.7,2519.6,26.73309]
[1749936536649,0.79344,2519.5,2519.4,3.2078]
[1749936536852,0.79344,2519.5,2519.4,27.7898]
[1749936537158,0.79344,2519.5,2519.4,3.2078]
[1749936537356,0.79344,2519.5,2519.4,34.2618]
[1749936537850,0.79344,2519.5,2519.4,35.05527]
[1749936539451,0.79344,2519.5,2519.4,28.57627]
[1749936540445,0.79344,2519.5,2519.4,27.7828]
[1749936541257,0.79344,2519.5,2519.4,27.7588]
[1749936541557,1.8700933,2519.5,2519.4,27.7588]
[1749936544662,1.8700933,2519.5,2519.4,27.7528]
[1749936545661,1.8700933,2519.5,2519.4,27.7488]
[1749936545960,3.2256933,2519.5,2519.4,27.7488]
[1749936546958,3.2256933,2519.5,2519.4,3.2078]
[1749936547759,3.22643005,2519.5,2519.4,3.2078]
[1749936550562,0.79347,2519.4,2519.3,24.531]
[1749936550764,1.87086005,2519.4,2519.3,25.32451]
[1749936550956,1.87086005,2519.4,2519.3,24.531]
[1749936552766,1.87086005,2519.4,2519.3,25.32451]
[1749936554167,1.87086005,2519.4,2519.3,24.531]
[1749936554866,1.87086005,2519.4,2519.3,25.32451]
[1749936555068,0.79351,2519.3,2519.2,0.79352]
[1749936555366,0.79351,2519.3,2519.2,25.28052]
[1749936556269,0.79351,2519.3,2519.2,24.487]
[1749936556464,0.79351,2519.3,2519.2,25.28054]
[1749936557667,0.79354,2519.2,2519.1,0.79950297]
[1749936557868,1.98372,2519.4,2519.1,0.79950297]
[1749936557869,0.79353,2519.3,2519.2,0.7935]
[1749936562668,0.6389,2519.6,2519.1,32.31985297]
[1749936562865,1.87128362,2519.5,2519.4,0.79344]
[1749936563365,0.79347,2519.4,2519.3,25.24948]
[1749936563567,1.87126362,2519.4,2519.3,25.24948]
[1749936564659,1.87126362,2519.4,2519.3,24.456]
[1749936566474,1.87126362,2519.4,2519.3,25.24951]
[1749936567874,1.07779362,2519.4,2519.3,28.45731]
[1749936568567,5.19112,2519.9,2519.3,28.45731]
[1749936568568,3.2078,2519.9,2519.3,29.64755]
[1749936568771,0.79341,2519.7,2519.4,1.9745]
[1749936568969,0.79341,2519.7,2519.6,0.79341]
[1749936569575,1.07852835,2519.7,2519.6,0.79341]
[1749936569778,1.87190835,2519.7,2519.6,2.037]
[1749936570270,1.87190835,2519.7,2519.6,2.83041]
[1749936570674,1.87190835,2519.7,2519.6,2.037]
[1749936575774,0.79341,2519.6,2519.5,7.18544]
[1749936576074,0.79341,2519.6,2519.5,32.96844]
[1749936581380,0.6782,2520.1,2519.5,32.175]
[1749936581582,0.79335,2519.9,2519.8,0.79334]
[1749936581776,1.86418089,2519.9,2519.8,25.767]
[1749936582374,1.07083089,2519.9,2519.8,26.56035]
[1749936582577,1.86415089,2519.9,2519.8,26.56035]
[1749936583188,1.07083089,2519.9,2519.8,26.56035]
[1749936583381,1.98302,2520.3,2519.9,0.79331]
[1749936583577,0.79325,2520.1,2520.0,27.18898]
[1749936583876,0.79325,2520.1,2520.0,26.3957]
[1749936584269,0.79325,2520.1,2520.0,27.18899]
[1749936584470,0.79325,2520.1,2520.0,26.3957]
[1749936584670,0.79325,2520.1,2520.0,29.6035]
[1749936585781,0.79325,2520.1,2520.0,30.39679]
[1749936586182,0.79325,2520.1,2520.0,30.39677]
[1749936586771,0.79325,2520.1,2520.0,29.6035]
[1749936586970,0.79325,2520.1,2520.0,30.39679]
[1749936588381,1.98291,2520.4,2520.0,29.6035]
[1749936588580,0.79325,2520.1,2520.0,30.39678]
[1749936589577,4.02461,2520.7,2520.0,30.39678]
[1749936589578,2.63943,2520.7,2520.0,29.6035]
[1749936589778,0.79317,2520.4,2520.3,4.00096]
[1749936589984,0.79317,2520.4,2520.3,34.83996]
[1749936590380,0.79315,2520.5,2520.4,0.79314]
[1749936590577,0.79315,2520.5,2520.4,0.6901]
[1749936591279,0.79315,2520.5,2520.4,1.48326]
[1749936592583,0.79315,2520.5,2520.4,2.86676]
[1749936593384,1.44979,2520.7,2520.4,2.0736]
[1749936593686,1.44979,2520.7,2520.6,3.2078]
[1749936593895,0.79309,2520.7,2520.6,3.2078]
[1749936594187,0.6603,2521.1,2520.6,3.2078]
[1749936594394,0.79303,2520.8,2520.7,25.23905]
[1749936594683,0.79303,2520.8,2520.7,31.63005]
[1749936596181,0.79302,2520.9,2520.8,0.79302]
[1749936596384,0.79302,2520.9,2520.8,2.12102]
[1749936602092,1.98232,2521.2,2520.8,2.12102]
[1749936602296,0.79295,2521.1,2521.0,0.79294]
[1749936602483,0.79294,2521.1,2521.0,25.23394]
[1749936603292,0.79292,2521.3,2521.2,0.79289]
[1749936603490,0.79287,2521.4,2521.3,0.79285]
[1749936603885,0.79288,2521.3,2521.2,28.44168]
[1749936604485,0.79286,2521.4,2521.3,0.79286]
[1749936605701,0.79284,2521.5,2521.4,0.79283]
[1749936605894,0.79284,2521.5,2521.4,25.87383]
[1749936606090,0.79284,2521.5,2521.4,25.081]
[1749936606798,0.79284,2521.5,2521.4,25.87385]
[1749936606995,0.79284,2521.5,2521.4,25.081]
[1749936607202,0.79284,2521.5,2521.4,25.079]
[1749936612004,0.79284,2521.5,2521.4,25.87185]
[1749936612397,0.79284,2521.5,2521.4,25.079]
[1749936614102,3.2078,2521.6,2521.0,6.386]
[1749936614298,0.79294,2521.1,2521.0,6.386]
[1749936614597,0.79294,2521.1,2521.0,30.819]
[1749936615407,2.72344,2521.1,2521.0,30.819]
[1749936617806,2.72344,2521.1,2520.9,3.2078]
[1749936617807,0.79297,2521.0,2520.9,3.2078]
[1749936618008,0.79297,2521.0,2520.9,27.6408]
[1749936620011,0.79297,2521.0,2520.9,28.43381]
[1749936620214,0.79297,2521.0,2520.9,27.6408]
[1749936621207,0.79297,2521.0,2520.9,28.4338]
[1749936621413,0.79296,2521.1,2521.0,0.79297]
[1749936622109,0.6769,2521.4,2520.9,28.924]
[1749936622413,0.79293,2521.2,2521.1,0.79292]
[1749936622709,0.79293,2521.2,2521.1,25.22492]
[1749936625407,0.7929,2521.3,2521.2,0.79289]
[1749936625603,1.86276231,2521.3,2521.2,7.17889]
[1749936626005,1.86276231,2521.3,2521.2,6.386]
[1749936626205,1.86276231,2521.3,2521.2,7.17891]
[1749936626814,0.7929,2521.3,2521.2,7.17891]
[1749936627015,0.7929,2521.3,2521.2,7.84271]
[1749936627716,0.79287,2521.4,2521.3,0.79288]
[1749936627920,0.79287,2521.4,2521.3,25.22388]
[1749936628620,0.79283,2521.5,2521.4,0.7928]
[1749936628913,0.79283,2521.5,2521.4,25.2228]
[1749936629320,1.86280196,2521.5,2521.4,25.2228]
[1749936630426,1.06997196,2521.5,2521.4,25.2228]
[1749936630821,0.79278,2521.7,2521.6,0.79279]
[1749936631024,1.86263153,2521.7,2521.6,25.22279]
[1749936631325,1.86263153,2521.7,2521.6,31.60579]
[1749936631522,0.79278,2521.7,2521.6,31.60579]
[1749936634319,0.79275,2521.7,2521.6,31.60577]
[1749936635223,0.79273,2521.8,2521.7,0.79272]
[1749936635424,1.86176832,2521.8,2521.7,25.84852]
[1749936635729,1.86176832,2521.8,2521.7,1.42152]
[1749936635925,1.86176832,2521.8,2521.7,25.0558]
[1749936637230,1.86176832,2521.8,2521.7,25.84855]
[1749936637423,1.86176832,2521.8,2521.7,25.0558]
[1749936638829,0.79273,2521.8,2521.7,25.0558]
[1749936639131,0.79273,2521.8,2521.7,25.84855]
[1749936639333,0.79273,2521.8,2521.7,25.0558]
[1749936639532,0.79273,2521.8,2521.7,25.84855]
[1749936642533,0.79273,2521.8,2521.7,27.22385]
[1749936646336,0.79271,2521.9,2521.8,0.79268]
[1749936646634,0.79271,2521.9,2521.8,25.21368]
[1749936647832,4.35676209,2522.6,2521.8,29.61059]
[1749936648034,1.86436621,2522.5,2522.4,0.79253]
[1749936648236,1.07183621,2522.5,2521.7,3.2078]
[1749936648435,0.79267,2522.0,2521.9,0.79268]
[1749936648637,0.79264,2522.1,2522.0,0.79264]
[1749936648831,0.79264,2522.1,2522.0,25.21264]
[1749936649026,0.79261,2522.2,2522.1,0.79261]
[1749936650039,2.6839,2522.4,2522.0,24.42]
[1749936650040,0.79258,2522.3,2522.2,0.79258]
[1749936650239,0.79258,2522.3,2522.2,25.21258]
[1749936651242,0.79258,2522.3,2522.2,24.42]
[1749936651542,0.79263,2522.1,2522.0,3.2078]
[1749936651741,0.79263,2522.1,2522.0,27.6278]
[1749936652241,0.79275,2521.8,2521.7,0.79275]
[1749936652438,1.3099,2522.2,2521.6,0.00595297]
[1749936652439,0.79275,2521.7,2521.6,0.00595297]
[1749936652738,0.79291,2521.2,2521.1,6.382]
[1749936652934,0.79291,2521.2,2521.1,30.8]
[1749936654242,0.79294,2521.1,2521.0,0.6622]
[1749936654539,0.79294,2521.1,2521.0,31.4622]
[1749936655042,0.79297,2521.0,2520.9,0.00595297]
[1749936655437,0.79297,2521.0,2520.9,24.42595297]
[1749936655745,0.79297,2521.0,2520.9,0.00595297]
[1749936656142,1.86483793,2521.0,2520.9,24.42595297]
[1749936656343,0.7931,2520.6,2520.5,3.2078]
[1749936656544,0.7931,2520.6,2520.5,27.6278]
[1749936657243,0.7931,2520.6,2520.2,6.379]
[1749936657244,0.79319,2520.3,2520.2,6.379]
[1749936657444,0.79319,2520.3,2520.2,30.799]
[1749936657643,0.79319,2520.3,2520.2,6.379]
[1749936657840,0.79323,2520.2,2520.1,27.6278]
[1749936658942,0.79323,2520.2,2520.1,28.42106]
[1749936659248,0.00595297,2520.5,2520.1,27.6278]
[1749936659440,0.79909297,2520.5,2520.4,0.79316]
[1749936659640,0.79909297,2520.5,2520.4,24.432]
[1749936660542,0.79319,2520.3,2520.1,3.2078]
[1749936660744,1.98879297,2520.5,2520.1,3.2078]
[1749936660948,0.79323,2520.2,2520.1,3.2078]
[1749936661149,0.79326,2520.1,2520.0,6.38595297]
[1749936661349,0.79326,2520.1,2520.0,30.82195297]
[1749936661552,0.79324,2520.2,2520.1,0.79323]
[1749936661744,0.00595297,2520.5,2520.0,30.82195297]
[1749936661745,0.79908297,2520.5,2520.3,0.79317]
[1749936661943,0.79908297,2520.5,2520.4,24.447]
[1749936662150,0.79908297,2520.5,2520.4,30.827]
[1749936662349,0.79908297,2520.5,2520.4,31.62016]
[1749936663946,0.00595297,2520.5,2520.4,31.62016]
[1749936666453,0.00595297,2520.5,2520.4,34.26716]
[1749936666848,4.00076,2521.1,2520.5,1.98277]
[1749936667044,4.00076,2521.1,2521.0,0.79297]
[1749936667242,3.2078,2521.1,2520.9,0.79298]
[1749936667441,0.79294,2521.2,2521.1,0.79293]
[1749936668255,0.00595297,2521.4,2521.3,0.79288]
[1749936668450,0.00595297,2521.4,2521.3,31.62288]
[1749936669857,0.00595297,2521.4,2521.3,32.90508]
[1749936670857,0.79880297,2521.4,2521.3,32.90508]
[1749936671259,0.00595297,2521.4,2521.3,32.90508]
[1749936672760,0.79880297,2521.4,2521.3,30.83]
[1749936672960,0.79881297,2521.4,2521.3,31.61488]
[1749936673356,0.79881297,2521.4,2521.3,30.822]
[1749936673859,0.79288,2521.3,2521.2,4.00071]
[1749936674060,0.79882297,2521.4,2521.3,0.79288]
[1749936677658,0.00595297,2521.4,2521.3,0.79288]
[1749936678260,0.00595297,2521.4,2521.3,31.59788]
[1749936678852,0.79880297,2521.4,2521.3,6.38]
[1749936679058,0.79880297,2521.4,2521.3,30.804]
[1749936679568,0.79880297,2521.4,2521.3,31.59688]
[1749936680266,0.79880297,2521.4,2521.3,30.804]
[1749936682359,0.00595297,2521.4,2521.2,4.0007]
[1749936682560,0.79288,2521.3,2521.2,3.2078]
[1749936682767,0.79288,2521.3,2521.2,27.6318]
[1749936682959,0.79288,2521.3,2521.2,28.42471]
[1749936683159,0.79882297,2521.4,2521.3,0.79288]
[1749936683462,0.79288,2521.3,2521.2,28.4247]
[1749936684566,0.79288,2521.3,2521.2,27.6318]
[1749936685565,0.79288,2521.3,2521.2,28.42471]
[1749936685864,0.79288,2521.3,2521.2,27.6318]
[1749936686767,0.79288,2521.3,2521.2,28.42471]
[1749936687168,0.79288,2521.3,2521.2,27.6318]
[1749936687467,0.79304,2520.9,2520.8,24.424]
[1749936687861,0.79304,2520.9,2520.8,25.21704]
[1749936688669,1.98811297,2521.4,2520.8,24.424]
[1749936688962,0.79299,2521.0,2520.9,0.79299]
[1749936689164,0.79301,2520.9,2520.8,26.57633]
[1749936689367,0.79301,2520.9,2520.8,25.21703]
[1749936689963,0.79301,2520.9,2520.8,0.79303]
[1749936690162,0.79301,2520.9,2520.8,25.21603]
[1749936691966,0.79301,2520.9,2520.8,24.423]
[1749936692572,0.79304,2520.8,2520.7,4.00085]
[1749936692869,0.79304,2520.8,2520.7,34.80485]
[1749936693672,0.79304,2520.8,2520.7,34.0118]
[1749936694474,0.79304,2520.8,2520.7,34.80487]
[1749936695571,0.79302,2520.9,2520.8,0.79301]
[1749936697675,1.45419,2521.0,2520.9,0.79301]
[1749936697883,0.79303,2520.9,2520.8,0.79301]
[1749936698173,0.79303,2520.9,2520.8,25.21801]
[1749936700275,0.9319,2521.1,2521.0,0.79297]
[1749936700573,1.72484,2521.1,2521.0,24.425]
[1749936700873,2.27804,2521.1,2521.0,24.425]
[1749936701073,1.84644,2521.1,2521.0,24.425]
[1749936701669,0.79297,2521.0,2520.9,0.79299]
[1749936701868,0.79297,2521.0,2520.9,25.21799]
[1749936704670,1.84647,2521.1,2521.0,0.79297]
[1749936704870,2.92042015,2521.1,2521.0,0.79297]
[1749936705071,1.86692015,2521.1,2521.0,0.79297]
[1749936705381,1.07395015,2521.1,2521.0,0.79297]
[1749936705578,1.07395015,2521.1,2521.0,2.14047]
[1749936705773,0.7759,2521.2,2521.1,0.79294]
[1749936706080,0.7019,2521.2,2521.1,7.82544]
[1749936706281,0.2703,2521.2,2521.1,8.51254]
[1749936706583,0.00595297,2521.4,2521.3,0.79288]
[1749936706781,0.00595297,2521.4,2521.3,28.42468]
[1749936708275,0.00595297,2521.4,2521.3,29.75638]
[1749936713785,0.00595297,2521.4,2521.3,36.13338]
[1749936720191,0.00595297,2521.4,2521.3,11.71238]
[1749936720489,0.79880297,2521.4,2521.3,34.79668]
[1749936720994,0.00595297,2521.4,2521.3,34.79668]
[1749936721191,0.79880297,2521.4,2521.3,34.79668]
[1749936721593,0.00595297,2521.4,2521.3,34.79668]
[1749936721796,0.79880297,2521.4,2521.3,3.2078]
[1749936721986,0.79880297,2521.4,2521.3,27.6248]
[1749936722186,1.48630297,2521.4,2521.3,27.6248]
[1749936722382,0.79291,2521.2,2521.1,1.48002]
[1749936722595,0.79291,2521.2,2521.1,32.27402]
[1749936722988,0.79291,2521.2,2521.1,6.377]
[1749936723495,0.79291,2521.2,2521.1,30.794]
[1749936724695,0.79297,2521.0,2520.9,27.1968]
[1749936724898,0.79297,2521.0,2520.9,51.6138]
[1749936725291,1.45587,2521.0,2520.9,3.2078]
[1749936725496,1.45587,2521.0,2520.9,27.6248]
[1749936725703,1.45587,2521.0,2520.9,3.2078]
[1749936726001,1.45587,2521.0,2520.9,27.6248]
[1749936726594,1.98257,2520.9,2520.7,24.417]
[1749936726795,1.45504,2520.8,2520.7,24.417]
[1749936726988,0.7931,2520.6,2520.5,3.2078]
[1749936727395,0.7931,2520.6,2520.5,27.6268]
[1749936727993,0.7931,2520.6,2520.5,28.41993]
[1749936728295,0.7931,2520.6,2520.5,3.2078]
[1749936728493,0.7931,2520.6,2520.5,27.6268]
[1749936729092,0.7931,2520.6,2520.5,3.2078]
[1749936729301,0.7931,2520.6,2520.5,27.6268]
[1749936729898,0.79316,2520.4,2520.3,6.379]
[1749936730199,0.79316,2520.4,2520.3,30.8]
[1749936731089,0.79316,2520.4,2520.3,6.379]
[1749936731291,0.79316,2520.4,2520.3,30.8]
[1749936732592,0.79323,2520.2,2520.1,3.2078]
[1749936732793,0.79323,2520.2,2520.1,27.6288]
[1749936733000,0.79323,2520.2,2520.1,27.6308]
[1749936733197,0.79323,2520.2,2520.1,3.2078]
[1749936733405,0.79323,2520.2,2520.1,27.6308]
[1749936734306,0.79323,2520.2,2520.1,3.2078]
[1749936734907,0.79323,2520.2,2520.1,27.6308]
[1749936735103,0.79341,2519.7,2519.6,7.17241]
[1749936735309,0.79341,2519.7,2519.6,30.802]
[1749936735610,0.79338,2519.7,2519.6,24.423]
[1749936735809,0.79341,2519.6,2519.5,0.79343]
[1749936736112,0.79341,2519.6,2519.5,25.21643]
[1749936736411,0.79341,2519.6,2519.5,0.79343]
[1749936736606,0.79341,2519.6,2519.5,25.21843]
[1749936736806,0.79341,2519.6,2519.5,24.425]
[1749936737205,0.79345,2519.5,2519.4,0.6658]
[1749936737410,0.79345,2519.5,2519.4,31.4708]
[1749936737813,0.00595297,2519.8,2519.7,0.79338]
[1749936738111,0.00595297,2519.8,2519.7,31.59838]
[1749936738417,0.79930297,2519.8,2519.7,0.79338]
[1749936738708,0.7934,2519.7,2519.6,0.79339]
[1749936739217,0.79342,2519.6,2519.5,6.38]
[1749936739706,2.04542,2519.6,2519.5,30.808]
[1749936741704,0.79348,2519.4,2519.3,0.00595297]
[1749936741912,4.00128,2519.4,2519.3,24.43295297]
[1749936742214,4.00128,2519.4,2519.3,24.43595297]
[1749936742714,10.31728,2519.4,2519.3,0.00595297]
[1749936744305,0.79367,2518.8,2518.6,0.631]
[1749936744507,0.79373,2518.6,2518.5,0.6418]
[1749936744905,0.79373,2518.6,2518.5,31.4538]
[1749936745510,0.79373,2518.6,2518.5,32.24756]
[1749936745712,0.652,2518.9,2518.5,31.4538]
[1749936745912,0.79358,2519.1,2519.0,0.79359]
[1749936746217,0.7936,2519.0,2518.9,25.22662]
[1749936746516,0.7936,2519.0,2518.9,24.433]
[1749936746711,0.7936,2519.0,2518.9,25.22664]
[1749936747112,0.7936,2519.0,2518.9,24.433]
[1749936747314,0.7936,2519.0,2518.9,25.22664]
[1749936747512,0.4325,2519.1,2518.4,3.2078]
[1749936747513,2.41649,2519.1,2518.4,3.2078]
[1749936747708,0.79366,2518.9,2518.8,0.79364]
[1749936747908,3.3639,2519.0,2518.5,1.9854]
[1749936748111,0.79367,2518.9,2518.5,1.9854]
[1749936748311,0.79367,2518.8,2518.7,0.79368]
[1749936748523,0.79367,2518.8,2518.7,25.22868]
[1749936749413,0.79367,2518.8,2518.7,24.435]
[1749936749611,0.79367,2518.8,2518.7,25.22868]
[1749936750012,0.79365,2518.9,2518.8,0.79366]
[1749936750713,0.79367,2518.8,2518.7,24.435]
[1749936751812,0.7937,2518.7,2518.6,0.79372]
[1749936752018,0.7937,2518.7,2518.6,31.61272]
[1749936752320,5.34794,2519.0,2518.5,0.6619]
[1749936752321,0.79373,2518.6,2518.5,0.6619]
[1749936752518,0.79373,2518.6,2518.5,25.0989]
[1749936753513,0.79373,2518.6,2518.5,25.89266]
[1749936755314,0.79373,2518.6,2518.5,25.0989]
[1749936755620,0.79373,2518.6,2518.5,25.89264]
[1749936757018,8.2078,2518.6,2518.3,0.00595297]
[1749936757323,0.79379,2518.4,2518.3,0.00595297]
[1749936757511,0.79398,2517.8,2517.7,0.6685]
[1749936757818,0.79398,2517.8,2517.7,0.6258]
[1749936759517,0.79398,2517.8,2517.7,1.41979]
[1749936759708,0.79398,2517.8,2517.7,1.9467]
[1749936760117,0.79398,2517.8,2517.7,2.74071]
[1749936760516,0.79398,2517.8,2517.7,1.9467]
[1749936760920,0.79398,2517.8,2517.7,2.74071]
[1749936761821,0.79398,2517.8,2517.7,1.9467]
[1749936762315,0.79398,2517.8,2517.7,2.74071]
[1749936763724,4.07596,2517.9,2517.8,0.79398]
[1749936763922,0.0742,2517.9,2517.7,1.9467]
[1749936764113,0.86818,2517.9,2517.8,0.79398]
[1749936764320,0.79398,2517.8,2517.7,2.7407]
[1749936764522,0.86817,2517.9,2517.8,0.79398]
[1749936765526,0.0742,2517.9,2517.8,0.79398]
[1749936765824,0.0742,2517.9,2517.8,2.15208]
[1749936770423,0.0742,2517.9,2517.8,8.53708]
[1749936772132,0.0742,2517.9,2517.8,13.53708]
[1749936774426,0.43855297,2518.0,2517.9,0.79395]
[1749936774729,0.43855297,2518.0,2517.9,30.43765]
[1749936775931,0.43855297,2518.0,2517.9,35.43765]
[1749936777829,0.43855297,2518.0,2517.9,32.22985]
[1749936778029,0.43855297,2518.0,2517.9,35.43765]
[1749936783435,0.43855297,2518.0,2517.9,30.43765]
[1749936785136,1.33725297,2518.0,2517.9,30.43765]
[1749936787334,1.33725297,2518.0,2517.9,35.49355]
[1749936789036,1.60795297,2518.0,2517.9,35.49355]
[1749936789740,1.60795297,2518.0,2517.9,4.00175]
[1749936789942,1.60795297,2518.0,2517.9,34.82975]
[1749936791139,2.40187297,2518.0,2517.9,4.00175]
[1749936791441,3.07907297,2518.0,2517.9,34.82975]
[1749936791630,4.42137297,2518.0,2517.9,6.384]
[1749936791829,4.42137297,2518.0,2517.9,30.827]
[1749936793535,0.79395,2517.9,2517.8,24.444]
[1749936793736,2.13625,2517.9,2517.8,24.444]
[1749936793941,7.13625,2517.9,2517.8,24.444]
[1749936794443,2.13625,2517.9,2517.8,24.444]
[1749936795844,1.7747,2517.9,2517.8,25.23798]
[1749936796942,2.56865,2517.9,2517.8,25.23798]
[1749936797142,1.7747,2517.9,2517.8,25.23798]
[1749936797342,2.56865,2517.9,2517.8,25.23798]
[1749936797642,1.7747,2517.9,2517.8,25.23798]
[1749936799150,2.56865,2517.9,2517.8,25.23798]
[1749936802443,2.56865,2517.9,2517.8,0.79398]
[1749936802646,2.56865,2517.9,2517.8,31.62298]
[1749936804746,1.22635,2517.9,2517.8,31.62298]
[1749936805449,1.38255,2517.9,2517.8,30.829]
[1749936806351,1.38255,2517.9,2517.8,31.62298]
[1749936810249,1.38255,2517.9,2517.8,30.829]
[1749936811355,1.38255,2517.9,2517.8,31.62298]
[1749936812953,1.65325,2517.9,2517.8,31.62298]
[1749936815044,1.65325,2517.9,2517.8,30.829]
[1749936815249,1.65325,2517.9,2517.8,6.384]
[1749936815446,2.72896683,2517.9,2517.8,30.827]
[1749936815850,4.02416683,2517.9,2517.8,30.827]
[1749936816354,4.02416683,2517.9,2517.8,6.384]
[1749936816657,0.79405,2517.6,2517.5,0.00595297]
[1749936816848,1.87038043,2517.6,2517.5,0.00595297]
[1749936817155,1.87038043,2517.6,2517.4,6.381]
[1749936817156,0.7942,2517.1,2517.0,7.17521]